Cogmind - Beta 14 @@@ ROGUE MODE // 2025.03.28 @ 22:43:20 Player: OldWhovian Result: Self-destructed Performance ------------- Evolutions (2) 1000 Regions Visited (4) 800 Robots Destroyed (12) 60 Value Destroyed (237) 237 Prototype IDs (0) 0 Alien Tech Used (0) 0 Bonus (0) 0 TOTAL SCORE: 2097 Bonus ------- None Cogmind --------- Core Integrity 550/550 Matter 256/300 Energy 100/100 System Corruption 13% Temperature Cool (78) Movement Treading (240) Ox1 Location -8/Materials Parts ------- > --- POWER (1) -------- (None) > --- PROPULSION (3) --- Light Treads > --- UTILITY (4) ------ Large Storage Unit > --- WEAPON (3) ------- Assault Rifle Heavy Assault Rifle > --- INVENTORY (15) --- Light Ion Engine Aluminum Leg Aluminum Leg EM Pulse Gun Particle Gun Particle Gun Assault Rifle Light Cannon Light Cannon Light Cannon Light Cannon Peak State ------------ > --- POWER ------------ Ion Engine > --- PROPULSION ------- Light Treads Light Treads Light Treads > --- UTILITY ---------- Large Storage Unit Visual Processing Unit Sensor Array Light Armor Plating > --- WEAPON ----------- Assault Rifle Heavy Assault Rifle Heavy Assault Rifle > --- INVENTORY -------- Light Ion Engine Aluminum Leg Aluminum Leg EM Pulse Gun Particle Gun Particle Gun Assault Rifle Light Cannon Light Cannon Light Cannon Light Cannon [Rating: 15] Favorites ----------- Power Ion Engine Engine Ion Engine Propulsion Light Treads Treads Light Treads Wheel Wheel Utility Large Storage Unit Device Sensor Array Storage Large Storage Unit Processor Visual Processing Unit Protection Light Armor Plating Weapon Assault Rifle Energy Gun Small Laser Ballistic Gun Assault Rifle Build | -11 -10 -9 -9 -8 ------- Run | Yrd Mat Mat Min Mat Slots Evolved 4 | . . 2 . 2 Power . | . . . . . Propulsion 1 | . . 1 . . Utility 2 | . . 1 . 1 Weapon 1 | . . . . 1 Parts Attached 17 | 6 4 5 . 2 Power 1 | 1 . . . . Engine 1 | 1 . . . . Core . | . . . . . Reactor . | . . . . . Propulsion 5 | 2 . 3 . . Treads 4 | 2 . 2 . . Leg . | . . . . . Wheel 1 | . . 1 . . Hover . | . . . . . Flight . | . . . . . Utility 6 | 1 3 1 . 1 Device 1 | . 1 . . . Storage 2 | 1 1 . . . Processor 1 | . . 1 . . Hackware . | . . . . . Protection 2 | . 1 . . 1 Artifact . | . . . . . Weapon 5 | 2 1 1 . 1 Energy Gun 1 | 1 . . . . Energy Cannon . | . . . . . Ballistic Gun 4 | 1 1 1 . 1 Ballistic Cannon . | . . . . . Launcher . | . . . . . Special Weapon . | . . . . . Impact Weapon . | . . . . . Slashing Weapon . | . . . . . Piercing Weapon . | . . . . . Special Melee Weapon . | . . . . . Unidentified Prototypes . | . . . . . Parts Lost 6 | . . . . 6 Power 1 | . . . . 1 Propulsion 2 | . . . . 2 Utility 3 | . . . . 3 Weapon . | . . . . . Highest Loss Streak 6 | . . . . 6 To Critical Strikes . | . . . . . Average Slot Usage (%) 99 | . 99 99 100 95 Engine 11 | . 14 11 11 8 Treads 27 | . 28 22 33 26 Wheel 3 | . . 9 . . Device 7 | . 1 11 11 8 Storage 12 | . 14 11 11 9 Processor 7 | . . 11 11 8 Protection 4 | . 11 . . 9 Energy Gun 1 | . 5 . . . Ballistic Gun 22 | . 22 22 22 27 Peak Build Rating 15 | 6 8 12 12 15 Average Rating 10 | 4 7 11 12 14 On Entrance 7 | . 6 8 12 12 Naked Turns . | . . . . . Heaviest Build 37 | 12 32 31 31 37 Greatest Support 60 | 40 40 60 60 60 Greatest Overweight (x) 2 | . . 2 . . Average Overweight (x) . | . . . . . Largest Inventory Capacity 15 | 8 15 15 15 15 Average Capacity 14 | 7 14 15 15 15 Most Carried 15 | 6 15 15 13 12 Average Carried 11 | 5 12 12 12 11 Final Capacity 15 | 8 15 15 15 15 Final Carried 14 | 6 14 13 13 11 Class Distribution -------------------- 63% | Mutant 30% | Scavenger-Mutant 4% | Scavenger-Skirmisher Dominant Class ---------------- Mutant | -10/Materials Mutant | -9/Materials Scavenger-Mutant | -9/Mines Scavenger-Skirmisher | -8/Materials Resources | -11 -10 -9 -9 -8 ----------- Run | Yrd Mat Mat Min Mat Matter Collected 501 | 263 90 142 6 . Remotely . | . . . . . Salvage Created 422 | 82 75 265 . . Parts 32 | 2 6 24 . . Haulers Intercepted . | . . . . . Recyclers Shooed 3 | . 2 1 . . Parts Field Recycled . | . . . . . Retrieved Matter . | . . . . . Parts Self-Destructed . | . . . . . Prevented . | . . . . . Kills | -11 -10 -9 -9 -8 ------- Run | Yrd Mat Mat Min Mat Combat Hostiles Destroyed 7 | . 3 4 . . Guns 7 | . 3 4 . . Classes Destroyed 6 | 1 2 3 . . Builder 1 | . . 1 . . Recycler 2 | 1 . 1 . . Watcher 2 | . 1 1 . . Swarmer 3 | . 3 . . . Grunt 2 | . . 2 . . Sentry 2 | . . 2 . . Best Kill Streak 4 | 1 3 4 . . Combat Bots Only 3 | . 3 2 . . Max Kills in Single Turn 2 | 1 1 2 . . Gunslinging . | . . . . . Exploded . | . . . . . Melee . | . . . . . Uniques/NPCs Destroyed . | . . . . . Combat | -11 -10 -9 -9 -8 -------- Run | Yrd Mat Mat Min Mat Hostile Shots Fired 83 | . 28 27 . 28 Missed 22 | . 9 8 . 5 Damage Taken 874 | . 149 275 . 450 Core 69 | . 43 26 . . Absorbed by Shields . | . . . . . Regen/Repaired (Parts) 23 | . . 23 . . Core Remaining (%) 91 | 100 82 . 93 . Volleys Fired 44 | 3 14 20 1 6 Largest 3 | 2 2 2 2 3 Hottest 66 | 60 60 43 43 66 Shots Fired 94 | 6 28 40 2 18 Gun 94 | 6 28 40 2 18 Cannon . | . . . . . Launcher . | . . . . . Special . | . . . . . Kinetic 89 | 3 26 40 2 18 Thermal 5 | 3 2 . . . Explosive . | . . . . . Electromagnetic . | . . . . . Robot Hit Streak 11 | 3 10 11 . 11 Robot Miss Streak 8 | 1 8 4 . 3 Penetration Max . | . . . . . Secondary Targets 2 | . 2 . . . Max Gunslinging Chain 1 | . 1 . . . Shots Hit Robots 60 | 5 17 26 . 12 Core Hits 24 | 2 7 13 . 2 Critical Kills . | . . . . . Critical Parts Destroyed 1 | . . 1 . . Critical Strikes 1 | . . 1 . . Destroy 1 | . . 1 . . Melee Attacks . | . . . . . Impact . | . . . . . Slashing . | . . . . . Piercing . | . . . . . Sneak Attacks . | . . . . . Combat Hostiles . | . . . . . Follow-up Attacks . | . . . . . Damage Inflicted 714 | 53 175 293 . 193 Guns 711 | 53 175 290 . 193 Cannons . | . . . . . Explosions . | . . . . . Melee . | . . . . . Ramming 3 | . . 3 . . Kinetic 676 | 18 175 290 . 193 Thermal 35 | 35 . . . . Explosive . | . . . . . Electromagnetic . | . . . . . Impact . | . . . . . Slashing . | . . . . . Piercing . | . . . . . Highest Corruption 13 | . . . . 13 Average Corruption 8 | . . . . 8 Corruption Purged . | . . . . . Corruption Blocked . | . . . . . Effects 1 | . . . . 1 Parts Rejected 1 | . . . . 1 Overload Shots . | . . . . . Overflow Damage . | . . . . . Projectiles . | . . . . . Explosions . | . . . . . Melee . | . . . . . Knockbacks . | . . . . . Impact . | . . . . . Kinetic . | . . . . . Secondary . | . . . . . Self-Inflicted Damage . | . . . . . Shots . | . . . . . Rammed 2 | . . 2 . . Targets Rammed 2 | . . 2 . . Kicked . | . . . . . Crushed . | . . . . . Highest Temperature 88 | 40 35 6 . 88 Average Temperature 20 | 19 7 6 . 45 Received Heat Transfer 285 | . . 87 . 198 Siege Activations . | . . . . . Robots Corrupted . | . . . . . Combat Hostiles . | . . . . . Parts Fried . | . . . . . Impact Corruptions . | . . . . . Robots Melted . | . . . . . Combat Hostiles . | . . . . . Parts Melted . | . . . . . Heat Transferred 75 | 75 . . . . Parts Sabotaged . | . . . . . Parts Stolen . | . . . . . Parts Stripped . | . . . . . Power Chain Reactions . | . . . . . Alert | -11 -10 -9 -9 -8 ------- Run | Yrd Mat Mat Min Mat Peak Influence 139 | 5 103 139 18 . Initial 18 | . 3 4 18 . Average 22 | . 33 26 16 . Maximum Alert Level . | . . . . . Low Security (%) 100 | 100 100 100 100 100 Level 1 . | . . . . . Level 2 . | . . . . . Level 3 . | . . . . . Level 4 . | . . . . . Level 5 . | . . . . . High Security . | . . . . . Max Security . | . . . . . Squads Dispatched . | . . . . . Investigation . | . . . . . Extermination . | . . . . . Reinforcement . | . . . . . Assault . | . . . . . Garrison . | . . . . . Intercept . | . . . . . Searches Triggered . | . . . . . Construction Impeded . | . . . . . Haulers Reinforced . | . . . . . Active Scanning Responses . | . . . . . Cargo Convoy Interrupts . | . . . . . Stealth | -11 -10 -9 -9 -8 --------- Run | Yrd Mat Mat Min Mat Distress Signals . | . . . . . Communications Jammed . | . . . . . Distress Signals . | . . . . . Times Spotted 20 | . 7 10 . 3 Peak Tracking Total 3 | . 3 3 . 3 Tactical Retreats . | . . . . . Traps | -11 -10 -9 -9 -8 ------- Run | Yrd Mat Mat Min Mat Traps Triggered . | . . . . . Indirectly . | . . . . . Trap Hack Attempts . | . . . . . Triggered . | . . . . . Disarmed . | . . . . . Reprogrammed . | . . . . . Reused . | . . . . . Traps Extracted . | . . . . . Installed . | . . . . . Triggered . | . . . . . Machines | -11 -10 -9 -9 -8 ---------- Run | Yrd Mat Mat Min Mat Machines Disabled . | . . . . . Max in Single Turn . | . . . . . Machines Repaired . | . . . . . Machines Dismantled . | . . . . . Machines Sabotaged . | . . . . . Overloaded Fab Kills . | . . . . . Hacking | -11 -10 -9 -9 -8 --------- Run | Yrd Mat Mat Min Mat Machines Accessed 4 | . 2 1 . 1 Terminals 2 | . 2 . . . Fabricators . | . . . . . Repair Stations 1 | . . 1 . . Recycling Units . | . . . . . Scanalyzers 1 | . . . . 1 Garrison Access . | . . . . . Total Hacks 10 | . 5 3 . 2 Successful 6 | . 2 2 . 2 Failed 4 | . 3 1 . . Catastrophic 1 | . 1 . . . Database Lockouts . | . . . . . Manual . | . . . . . Terminals 5 | . 5 . . . Fabricators . | . . . . . Repair Stations 3 | . . 3 . . Recycling Units . | . . . . . Scanalyzers 2 | . . . . 2 Garrison Access . | . . . . . Terminal Hacks 2 | . 2 . . . Emergency Access Points 1 | . 1 . . . Zone Layout 1 | . 1 . . . Fabricator Hacks . | . . . . . Repair Station Hacks 2 | . . 2 . . Scan Component 1 | . . 1 . . Repair 1 | . . 1 . . Recycling Unit Hacks . | . . . . . Scanalyzer 2 | . . . . 2 Insert Component 1 | . . . . 1 Analyze 1 | . . . . 1 Garrison Access Hacks . | . . . . . Unauthorized Hacks . | . . . . . Terminals . | . . . . . Fabricators . | . . . . . Repair Stations . | . . . . . Recycling Units . | . . . . . Scanalyzers . | . . . . . Garrison Access . | . . . . . Data Cores Recovered . | . . . . . Used . | . . . . . Hacking Detections 2 | . 2 . . . Full Trace Events . | . . . . . Feedback Events . | . . . . . Feedback Blocked . | . . . . . Robot Schematics Acquired . | . . . . . Robots Built . | . . . . . Authchips . | . . . . . Time . | . . . . . Total Robot Build Rating . | . . . . . Part Schematics Acquired 1 | . . . . 1 Parts Built . | . . . . . Authchips . | . . . . . Time . | . . . . . Total Part Build Rating . | . . . . . Parts Repaired 1 | . . 1 . . Time 26 | . . 26 . . Parts Recycled . | . . . . . Recycled Matter . | . . . . . Retrieved Matter . | . . . . . Retrieved Components . | . . . . . Parts Scanalyzed 1 | . . . . 1 Part Schematics Acquired 1 | . . . . 1 Parts Damaged . | . . . . . Bothacking | -11 -10 -9 -9 -8 ------------ Run | Yrd Mat Mat Min Mat Used RIF Installer . | . . . . . Robots Hacked . | . . . . . Non-combat . | . . . . . Combat . | . . . . . Robot Hacks Applied . | . . . . . Relay Couplers Released . | . . . . . Fabnet Peak Effective % . | . . . . . Robots Rewired . | . . . . . Allies Hacked . | . . . . . Hacks Repelled . | . . . . . Allies | -11 -10 -9 -9 -8 -------- Run | Yrd Mat Mat Min Mat Total Allies . | . . . . . Largest Group . | . . . . . Highest-Rated Group . | . . . . . Highest-Rated Ally . | . . . . . Total Orders . | . . . . . Ally Attacks . | . . . . . Total Damage . | . . . . . Kills . | . . . . . Allies Corrupted . | . . . . . Allies Melted . | . . . . . Intel | -11 -10 -9 -9 -8 ------- Run | Yrd Mat Mat Min Mat Robot Analysis Total . | . . . . . Derelict Logs Recovered 1 | . . . 1 . Drone Launches . | . . . . . Drone Recoveries . | . . . . . Exploration | -11 -10 -9 -9 -8 ------------- Run | Yrd Mat Mat Min Mat Turns Passed 1614 | 115 475 504 432 88 Spaces Moved 809 | 69 258 176 265 41 Core 17 | 17 . . . . Treads 791 | 52 258 175 265 41 Legs . | . . . . . Wheels 1 | . . 1 . . Hover . | . . . . . Flight . | . . . . . Fastest Speed 50 | 50 160 110 160 160 Average Speed 157 | 132 160 160 160 160 Slowest Speed 240 | 160 160 240 160 160 Overloaded Moves . | . . . . . Propulsion Burnouts . | . . . . . Robots Hopped . | . . . . . Cave-ins Triggered . | . . . . . Exploration Rate (%) 25 | 4 40 15 60 6 Regions Visited 4 Branch Regions 1 Pre-discovered Areas 1 | . . . 1 . Known Exits Taken . | . . . . . Unknown Exits Taken 4 | 1 1 1 1 . Scrap Searched 1 | . . . 1 . Spaces Dug . | . . . . . Terrain Destroyed . | . . . . . Melee . | . . . . . Projectile . | . . . . . AOE . | . . . . . Terrain Rammed . | . . . . . Walls Destroyed . | . . . . . Machines Disabled . | . . . . . Actions | -11 -10 -9 -9 -8 --------- Run | Yrd Mat Mat Min Mat Total 1064 | 86 297 360 272 49 Wait 161 | . 5 151 5 . Move 805 | 68 257 175 264 41 Hop . | . . . . . Pick Up 24 | 9 10 4 1 . Fast Attach 6 | 3 3 . . . Attach 11 | 3 1 5 . 2 Detach 4 | . 3 1 . . Swap . | . . . . . Drop 7 | . 4 2 1 . Fire 44 | 3 14 20 1 6 Melee . | . . . . . Ram . | . . . . . Kick . | . . . . . Crush 2 | . . 2 . . Escape Stasis . | . . . . . Rewire . | . . . . . Trap . | . . . . . Miscellaneous . | . . . . . Route ------- -11/Scrapyard -10/Materials -9/Materials -9/Mines (discovered 2 exits: *Mat x2) -8/Materials History --------- Turn | Location | Event 14 | -11/Scrapyard | Discovered new exit (range 16) 116 | -11/Scrapyard | Entered Materials 322 | -10/Materials | Build established: Mutant 557 | -10/Materials | Discovered new exit (range 11) 591 | -10/Materials | Entered another Materials area 591 | -9/Materials | Evolved 2 slots: Propulsion x1, Utility x1 654 | -9/Materials | Repaired Lgt. Treads 886 | -9/Materials | Discovered new exit (range 18) 1095 | -9/Materials | Entered Mines 1096 | -9/Mines | Learned location of Storage (-8) 1336 | -9/Mines | Learned Materials stockpile data 1342 | -9/Mines | Build established: Scavenger-Mutant 1353 | -9/Mines | Discovered new exit (range 9) 1508 | -9/Mines | Discovered new exit (range 9) 1527 | -9/Mines | Entered Materials 1527 | -8/Materials | Evolved 2 slots: Utility x1, Weapon x1 1615 | -8/Materials | System corruption reached 10% 1615 | -8/Materials | Self-destructed Last Messages --------------- C-30 ARC bursts open, deploying its payload. B-36 Bruiser unfolds itself. G-47 Trooper unfolds itself. K-01 Serf collects debris. Visual Processing Unit destroyed. System corrupted by crushing effect (+4). K-01 Serf collects debris. Critical hit (Burn: +37). Sensor Array destroyed. System corrupted by crushing effect (+5). Ion Engine destroyed. K-01 Serf collects debris. Lgt. Treads destroyed. Critical hit (Burn: +37). K-01 Serf collects debris. Lgt. Armor Plating destroyed. System corrupted: Hvy. Assault Rifle rejected. Lgt. Treads destroyed. System corrupted by crushing effect (+4). Critical hit (Burn: +37). Map ----- +----------------------------------------------------+ | ?????????????????????????????????????????????????? | | ?????????????????????????????????????????????????? | | ?????????????????????????????????????????????????? | | ?????????????????????????????????????????????????? | | ?????????????????????????????????????????????????? | | ?????????????????????????????????????????????????? | | ?????????????????????????????????????????????????? | | ?????????????????????????????????????????????????? | | ?????????????????????????????????????????????????? | | ?????????????????????????????????????????????????? | | ?????????????????????????????????????????????????? | | ????????????????#######??????????????????????????? | | ????????????????# #??????????????????????????? | | ???????????????? ???????????????????????????? | | ???????????????? ???????????????????????????? | | ????????????????? ???????????????????????????? | | ????????????????? ???????????????????????????? | | ?????????????????# #???????????????????????????? | | ?????????????????# #???????????????????????????? | | ?????????????????# #???????????????????????????? | | ?????????????????# +???????????????????????????? | | ?????????????????# #???????????#???????????????? | | ?????????????????# #??????#### #???????????????? | | ??????????#??????# ####### [#???????????????? | | ??????????# ????# g #???????????????? | | ??????????# """??# @b T +???????????????? | | ??????????# """ # rr g%k #???????????????? | | ??????????# """ + r ####### #???????????????? | | ??????????# """ # #??????? ##???????????????? | | ??????????# ??# #???????? #????????????????? | | ??????????######## #??????????#????????????????? | | ?????????????# #???????????????????????????? | | ?????????????# #???????????????????????????? | | ?????????????# #???????????????????????????? | | ?????????????# #+########???????????????????????? | | ?????????????# # #???????????????????????? | | ?????????????# # "" #???????????????????????? | | ?????????????# # """ #???????????????????????? | | ?????????????# # S" #???????????????????????? | | ?????????????# # #???????????????????????? | | ?????????????# # """ ! #???????????????????????? | | ?????????????# # """ #???????????????????????? | | ?????????????# # """ #???????????????????????? | | ?????????????# # #???????????????????????? | | ?????????????# ##########???????????????????????? | | ?????????????# ?????????????????????????????????? | | ?????????????# ?????????????????????????????????? | | ?????????????? ?????????????????????????????????? | | ?????????????? ?????????????????????????????????? | | ?????????????? ?????????????????????????????????? | +----------------------------------------------------+ Best States ------------- Heat Dissipation 31 Energy Generation 10 Energy Capacity 250 Matter Stores 300 Matter Capacity 300 Sight Range 18 Robot Scan Range 14 Terrain Scan Density 10 Armor Coverage 150 Evasion (%) 40 Recoil Reduction 3 Item Schematics ----------------- Lgt. Cannon | -8/Materials | Scanalyzed Robot Schematics ------------------ None Fabricated ------------ Nothing Alien Tech Used ----------------- None Achievements -------------- None Challenges ------------ None Game ------ Seed AuthchipLauncherAutogun Manual? 0 Play Time 00:24:18 Cumulative 18.2 hours Start 2025.03.28 @ 22:16:23 End 2025.03.28 @ 22:43:20 Sessions 1 Manual Loads 0 Difficulty Rogue Special Mode None Game No. 21 Rogue 21 Adventurer 0 Explorer 0 Win Type - Total 0 Types 0/0/0/0/0/0/0/0/0 Lore% 11 Gallery% 14 Achievement% 17 Wizard Run 0 Options --------- Layout 0 ASCII 0 Keyboard 0 Movement Arrows Keybinds 0 Fullscreen 2 Font 36/Smallcaps Map View 38x25 Zoom Use 100% Tactical HUD 0 Map Filters NONE Filters NONE Steam 1 RUN: 47e2227e-6e6f-4646-bc97-f5b94bf742aa